fUST/lending_fUST_20240426
["ID","MTS","AMOUNT","RATE_DAILY","PERIOD"]
[323533716,1714074645707,-500.0,0.00028494,2]
[323533718,1714074645716,-156.63019152,0.000285,2]
[323533729,1714074645727,-156.63019152,0.000285,2]
[323533733,1714074645837,-156.63019,0.000285,2]
[323533735,1714074645847,-1385.1,0.0002856,3]
[323533737,1714074645857,-8629.84,0.00028571,3]
[323533739,1714074645866,-13474.06,0.00028571,3]
[323533741,1714074645875,-11228.39,0.00028571,3]
[323533743,1714074645884,-9356.99,0.00028571,3]
[323533745,1714074645893,-2873.19,0.00028581,2]
[323533747,1714074645902,-201.23183919,0.00028583,2]
[323533749,1714074645911,-5452.21632501,0.00028583,2]
[323533751,1714074645920,-953.62,0.00028583,30]
[323533752,1714074645931,-953.62,0.00028583,30]
[323533754,1714074645940,-953.62,0.00028583,30]
[323533756,1714074645951,-953.62,0.00028583,30]
[323533758,1714074645960,-953.62,0.00028583,30]
[323533760,1714074645969,-953.62,0.00028583,30]
[323533763,1714074645979,-953.62,0.00028583,30]
[323533765,1714074645988,-953.62,0.00028583,30]
[323533767,1714074645997,-953.62,0.00028583,30]
[323533769,1714074646007,-953.62,0.00028583,30]
[323533770,1714074646018,-953.62,0.00028583,30]
[323533772,1714074646027,-953.62,0.00028583,30]
[323533774,1714074646036,-953.62,0.00028583,30]
[323533776,1714074646045,-953.62,0.00028583,30]
[323533778,1714074646054,-953.62,0.00028583,30]
[323533780,1714074646064,-953.62,0.00028583,30]
[323533783,1714074646074,-953.62,0.00028583,30]
[323533784,1714074646083,-953.62,0.00028583,30]
[323533786,1714074646092,-953.62,0.00028583,30]
[323533788,1714074646101,-953.62,0.00028583,30]
[323533790,1714074646111,-953.62,0.00028583,30]
[323533792,1714074646120,-953.62,0.00028583,30]
[323533794,1714074646130,-953.62,0.00028583,30]
[323533796,1714074646139,-953.67314692,0.00028583,30]
[323533798,1714074646148,-166.666666,0.00028679,2]
[323533800,1714074646157,-520.08349356,0.00029219,3]
[323533802,1714074646166,-166.666666,0.00029321,2]
[323533804,1714074646176,-2873.19,0.00029676,4]
[323533806,1714074646185,-153.0,0.00029705,2]
[323533808,1714074646194,-153.0,0.00029812,2]
[323533809,1714074646202,-153.0,0.00029812,2]
[323533811,1714074646211,-153.0,0.00029812,2]
[323533813,1714074646220,-153.0,0.00029812,2]
[323533815,1714074646229,-182.15398208,0.00029849,2]
[323533817,1714074646238,-166.666666,0.00029962,2]
[323533819,1714074646247,-154.84515485,0.0003,4]
[323533821,1714074646256,-154.87609912,0.0003,2]
[323533823,1714074646265,-870.15716401,0.0003,10]
[323533825,1714074646274,-166.666666,0.0003,2]
[323533826,1714074646283,-1385.1,0.0003003,3]
[323533828,1714074646291,-153.0,0.0003039,2]
[323533830,1714074646300,-166.666666,0.00030603,2]
[323533832,1714074646311,-153.0,0.00030634,2]
[323533834,1714074646320,-153.0,0.00030634,2]
[323533836,1714074646329,-2873.19,0.00030772,6]
[323533838,1714074646338,-600.0,0.0003089,2]
[323533840,1714074646346,-153.0,0.00031285,2]
[323533842,1714074646355,-1385.1,0.000315,5]
[323533844,1714074646364,-203.6371581,0.00031696,2]
[323533846,1714074646373,-203.6371581,0.00031696,2]
[323533848,1714074646382,-203.6371581,0.00031696,2]
[323533849,1714074646391,-2873.19,0.00031868,8]
[323533851,1714074646400,-191.46085759,0.00032,4]
[323533853,1714074646409,-1211.03128397,0.00032,3]
[323533855,1714074646418,-150.0,0.00032694,2]
[323533857,1714074646428,-1554.57726714,0.000329,2]
[323533859,1714074646437,-2873.19,0.00032964,10]
[323533861,1714074646445,-1385.1,0.0003297,7]
[323533863,1714074646455,-1000.0,0.00033,33]
[323533865,1714074646463,-317.962418,0.00033165,2]
[323533866,1714074646472,-249.266861,0.00033165,2]
[323533868,1714074646482,-153.0,0.00033235,2]
[323533870,1714074646491,-153.0,0.00033235,2]
[323533872,1714074646500,-153.0,0.00033235,2]
[323533874,1714074646509,-153.0,0.00033235,2]
[323533876,1714074646519,-153.0,0.00033235,2]
[323533878,1714074646527,-150.84915085,0.00033494,2]
[323533879,1714074646536,-182.15398208,0.00033499,2]
[323533880,1714074646545,-500.0,0.00033499,7]
[323533881,1714074646554,-500.0,0.00033499,7]
[323533882,1714074646564,-500.0,0.00033499,7]
[323533883,1714074646573,-425.0,0.00033499,7]
[323533884,1714074646583,-44444.0,0.000335,3]
[323533885,1714074646592,-193.52697819,0.00033559,4]
[323533886,1714074646601,-658.69415901,0.00033578,4]
[323533887,1714074646610,-7794.08111854,0.00033579,7]
[323533888,1714074646620,-228.69176972,0.00033588,4]
[323533890,1714074646631,-154.95418533,0.00033588,4]
[323533892,1714074646639,-276.5697273,0.00033588,4]
[323533894,1714074646648,-293.34340127,0.00033589,4]
[323533896,1714074646657,-474.79230604,0.00033598,4]
[323533897,1714074646666,-50606.04054041,0.000336,2]
[323533904,1714074646962,-170.106003,0.00019,2]
[323533905,1714074646973,-170.106003,0.00019178,2]
[323533906,1714074646982,-170.106003,0.00019178,2]
[323533907,1714074646991,-170.106003,0.00019178,2]
[323533908,1714074647001,-170.106003,0.00019178,2]
[323533909,1714074647011,-170.106003,0.00019178,2]
[323533910,1714074647020,-170.106003,0.00019451,2]
[323533911,1714074647029,-170.106003,0.00019451,2]
[323533912,1714074647039,-7797.49,0.00028571,3]
[323533913,1714074647048,-47172.71362235,0.000336,2]
[323533914,1714074647057,-178000.0,0.000336,2]
[323533915,1714074647067,-153.0,0.00033646,2]
[323533916,1714074647076,-153.0,0.00033646,2]
[323533917,1714074647085,-153.0,0.00033646,2]
[323533918,1714074647094,-150.0,0.00033694,2]
[323533919,1714074647103,-1210.54740372,0.0003392,3]
[323533920,1714074647112,-466.00099692,0.00034,4]
[323533921,1714074647122,-301.6983017,0.00034057,4]
[323533922,1714074647131,-2873.19,0.0003406,12]
[323533923,1714074647140,-524.84817716,0.00034436,4]
[323533924,1714074647149,-1148.79410693,0.00034438,4]
[323533925,1714074647158,-2623.01567159,0.00034438,4]
[323533926,1714074647167,-1090.08472256,0.00034438,4]
[323533927,1714074647178,-154.89158518,0.00034438,4]
[323533928,1714074647187,-977.80653021,0.00034438,4]
[323533929,1714074647196,-453.16333524,0.00034438,4]
[323533930,1714074647205,-539.84959505,0.00034438,4]
[323533931,1714074647216,-835.12868552,0.00034438,4]
[323533932,1714074647226,-250.4086408,0.00034438,4]
[323533933,1714074647235,-155.37912234,0.00034438,4]
[323533934,1714074647244,-1057.35627106,0.00034438,4]
[323533935,1714074647254,-214.50434264,0.00034438,4]
[323533936,1714074647262,-160.83613442,0.00034438,2]
[323533937,1714074647272,-154.99603486,0.00034438,4]
[323533938,1714074647281,-905.51690509,0.00034438,4]
[323533939,1714074647290,-157.76351589,0.00034438,4]
[323533940,1714074647299,-1548.96123813,0.00034438,4]
[323533941,1714074647308,-305.02639978,0.00034439,4]
[323533942,1714074647317,-6404.4295328,0.00034439,4]
[323533943,1714074647326,-53035.7489745,0.0003444,2]
[323533944,1714074647335,-1385.1,0.0003444,7]
[323533945,1714074647344,-603.3966034,0.00034629,7]
[323533946,1714074647353,-150.0,0.00034694,2]
[323533947,1714074647362,-500.0,0.000348,60]
[323533948,1714074647372,-853.68864717,0.00035,2]
[323533949,1714074647381,-5313.07800444,0.00035,4]
[323533950,1714074647390,-6885.56037624,0.00035,4]
[323533951,1714074647399,-154.86062544,0.00035,4]
[323533952,1714074647409,-502.6864973,0.00035,120]
[323533953,1714074647418,-2873.19,0.00035156,14]
[323533954,1714074647429,-373.974111,0.00035616,120]
[323533955,1714074647438,-150.0,0.00035694,2]
[323533956,1714074647448,-410.0439855,0.00036,14]
[323533957,1714074647457,-2873.19,0.00036252,16]
[323533958,1714074647466,-150.0,0.00036694,2]
[323533959,1714074647475,-2925.22040522,0.00037,2]
[323533960,1714074647485,-600.0,0.00037,4]
[323533961,1714074647493,-2873.19,0.00037348,18]
[323533962,1714074647502,-165.107038,0.0003736,2]
[323533963,1714074647511,-442.04955631,0.00037539,8]
[323533964,1714074647519,-150.0,0.00037694,2]
[323533965,1714074647528,-500.0,0.00038,4]
[323533966,1714074647537,-2873.19,0.00038444,20]
[323533967,1714074647546,-317.962418,0.00038933,2]
[323533968,1714074647555,-249.266861,0.00038933,2]
[323533969,1714074647564,-999.0,0.00039397,30]
[323533970,1714074647573,-999.0,0.00039397,30]
[323533971,1714074647582,-999.0,0.00039397,30]
[323533972,1714074647591,-999.0,0.00039397,30]
[323533973,1714074647600,-999.0,0.00039397,30]
[323533975,1714074647609,-505.0,0.00039397,30]
[323533976,1714074647618,-2873.19,0.0003954,22]
[323533978,1714074647630,-298.0,0.0004,4]
[323533980,1714074647639,-154.86062544,0.0004,2]
[323533981,1714074647648,-1493.50659497,0.0004,7]
[323533982,1714074647657,-7474.25278454,0.0004,2]
[323533984,1714074647667,-19890.0,0.0004,2]
[323533986,1714074647677,-4800.03761738,0.0004,2]
[323533987,1714074647686,-1088.53363022,0.0004,2]
[323533989,1714074647696,-3248.0,0.0004,120]
[323533991,1714074647707,-2873.19,0.00040635,24]
[323533993,1714074647716,-188.90066418,0.00041,2]
[323533995,1714074647726,-1000.0,0.00041095,2]
[323533996,1714074647735,-1000.0,0.00041095,2]
[323533998,1714074647744,-1000.0,0.00041095,2]
[323534000,1714074647753,-1000.0,0.00041095,2]
[323534002,1714074647763,-1000.0,0.00041095,2]
[323534004,1714074647772,-1000.0,0.00041095,2]
[323534005,1714074647781,-1000.0,0.00041095,2]
[323534007,1714074647791,-1000.0,0.00041095,2]
[323534009,1714074647800,-1000.0,0.00041095,2]
[323534011,1714074647810,-1000.0,0.00041095,2]
[323534013,1714074647819,-1000.0,0.00041095,2]
[323534014,1714074647828,-1000.0,0.00041095,2]
[323534016,1714074647838,-1000.0,0.00041095,2]
[323534018,1714074647847,-840.47719298,0.00041095,2]
[323534020,1714074647856,-177.8975687,0.00041096,2]
[323534022,1714074647866,-400.0,0.00041096,30]
[323534024,1714074647875,-528.01645216,0.00041096,31]
[323534025,1714074647884,-528.01645216,0.00041096,31]
[323534027,1714074647893,-528.01645216,0.00041096,31]
[323534029,1714074647901,-528.01645216,0.00041096,31]
[323534031,1714074647911,-528.01645216,0.00041096,31]
[323534032,1714074647919,-528.01645216,0.00041096,31]
[323534034,1714074647929,-528.01645216,0.00041096,31]
[323534036,1714074647938,-528.01645216,0.00041096,31]
[323534038,1714074647947,-528.01645216,0.00041096,31]
[323534040,1714074647956,-528.01645216,0.00041096,31]
[323534041,1714074647966,-528.01645216,0.00041096,31]
[323534043,1714074647976,-528.01645216,0.00041096,31]
[323534045,1714074647985,-528.01645216,0.00041096,31]
[323534047,1714074647994,-528.01645216,0.00041096,31]
[323534048,1714074648003,-528.01645216,0.00041096,31]
[323534050,1714074648015,-528.01645216,0.00041096,31]
[323534052,1714074648024,-528.01645216,0.00041096,31]
[323534061,1714074648033,-528.01645216,0.00041096,31]
[323534062,1714074648144,-528.01645216,0.00041096,31]
[323534063,1714074648154,-528.01645216,0.00041096,31]
[323534065,1714074648163,-528.01645216,0.00041096,31]
[323534067,1714074648172,-528.01645216,0.00041096,31]
[323534069,1714074648183,-528.01645216,0.00041096,31]
[323534070,1714074648192,-528.01645216,0.00041096,31]
[323534072,1714074648200,-528.01645216,0.00041096,31]
[323534074,1714074648210,-528.01645216,0.00041096,31]
[323534076,1714074648219,-528.01645216,0.00041096,31]
[323534077,1714074648228,-528.01645216,0.00041096,31]
[323534079,1714074648237,-528.01645216,0.00041096,31]
[323534081,1714074648246,-528.01645216,0.00041096,31]
[323534083,1714074648255,-528.01645216,0.00041096,31]
[323534085,1714074648265,-528.01645216,0.00041096,31]
[323534086,1714074648274,-528.01645216,0.00041096,31]
[323534088,1714074648283,-528.01645216,0.00041096,31]
[323534090,1714074648292,-528.01645216,0.00041096,31]
[323534092,1714074648302,-528.01645216,0.00041096,31]
[323534094,1714074648311,-528.01645216,0.00041096,31]
[323534096,1714074648320,-528.01645216,0.00041096,31]
[323534098,1714074648329,-528.01645216,0.00041096,31]
[323534100,1714074648339,-528.01645216,0.00041096,31]
[323534102,1714074648347,-528.01645216,0.00041096,31]
[323534104,1714074648356,-528.01645216,0.00041096,31]
[323534106,1714074648365,-528.01645216,0.00041096,31]
[323534108,1714074648374,-528.01645216,0.00041096,31]
[323534110,1714074648383,-373.974111,0.00041553,120]
[323534112,1714074648393,-2873.19,0.00041731,26]
[323534114,1714074648402,-252.49535146,0.00042,4]
[323534116,1714074648411,-160.348274,0.00042009,2]
[323534118,1714074648420,-2873.19,0.00042827,28]
[323534120,1714074648429,-1000.0,0.00042829,7]
[323534122,1714074648438,-1000.0,0.00042902,7]
[323534124,1714074648447,-1000.0,0.00042918,7]
[323534126,1714074648455,-1000.0,0.00042973,7]
[323534127,1714074648465,-1000.0,0.00043096,7]
[323534129,1714074648474,-153.0,0.00043151,2]
[323534132,1714074648483,-153.0,0.00043151,2]
[323534134,1714074648494,-420.44989476,0.00043836,30]
[323534135,1714074648503,-2873.19,0.00043923,30]
[323534138,1714074648512,-2028.0,0.00044,120]
[323534140,1714074648522,-388.8386368,0.00044027,2]
[323534141,1714074648531,-173.18424116,0.0004434,10]
[323534143,1714074648541,-78345.20047191,0.000447,60]
[323534400,1714074882578,4076.3447162,0.00024,60]
[323534444,1714075832379,-884.01038673,0.00019447,2]
[323534446,1714075832389,-634.47134264,0.00019447,2]
[323534448,1714075832400,-4540.1969441,0.00019447,2]
[323534676,1714075838513,-3028.02601814,0.00019447,2]
[323534678,1714075838525,-938.25,0.00019447,2]
[323534878,1714075840535,-800.25498688,0.00019447,2]
[323535183,1714075843380,-739.22255824,0.00019447,2]
[323535186,1714075843389,-5487.39971696,0.00019448,2]
[323535189,1714075843398,-366.56812471,0.00019449,2]
[323535191,1714075843407,-241.5530834,0.00023992,2]
[323535193,1714075843416,-638.06438949,0.00023997,2]
[323535195,1714075843425,-155.21160697,0.00024,2]
[323535196,1714075843434,-1563.01361933,0.00024,2]
[323535198,1714075843443,-10586.41755726,0.00024,2]
[323535200,1714075843452,-161.917522,0.00025783,2]
[323535202,1714075843461,-332.46637311,0.00027396,20]
[323535204,1714075843471,-388.635327,0.00027397,2]
[323535206,1714075843480,-1000.0,0.00027397,2]
[323535208,1714075843489,-253.42131,0.00027397,2]
[323535210,1714075843499,-165.107038,0.00027397,2]
[323535212,1714075843508,-166.666666,0.00027426,2]
[323535214,1714075843517,-220.80144736,0.00028,2]
[323535217,1714075843527,-802.10050588,0.00028066,17]
[323535218,1714075843536,-159.824363,0.00028068,2]
[323535220,1714075843546,-166.666666,0.00028173,2]
[323535222,1714075843555,-166.666666,0.00028921,2]
[323535224,1714075843564,-166.666666,0.00029669,2]
[323535226,1714075843573,-154.87609912,0.0003,4]
[323535228,1714075843582,-166.666666,0.0003,2]
[323535230,1714075843592,-154.8915759,0.0003,2]
[323535232,1714075843600,-870.15716401,0.0003,10]
[323535234,1714075843609,-166.666666,0.00030417,2]
[323535236,1714075843619,-166.666666,0.00031164,2]
[323535238,1714075843629,-191.46085759,0.00032,4]
[323535240,1714075843638,-500.0,0.00033156,2]
[323535242,1714075843647,-388.635327,0.00033165,2]
[323535244,1714075843656,-253.42131,0.00033165,2]
[323535246,1714075843665,-2000.0,0.00033961,2]
[323535248,1714075843675,-466.00099692,0.00034,4]
[323535250,1714075843684,-3719.15460311,0.00035,4]
[323535252,1714075843693,-853.68864717,0.00035,2]
[323535254,1714075843702,-186.987055,0.00035616,120]
[323535256,1714075843711,-150.87929656,0.00038316,2]
[323535258,1714075843721,-6885.56037624,0.00038931,4]
[323535260,1714075843730,-2925.22040522,0.00038932,2]
[323535262,1714075843739,-388.635327,0.00038933,2]
[323535264,1714075843749,-253.42131,0.00038933,2]
[323535266,1714075843758,-301.75859313,0.0003896,4]
[323535268,1714075843768,-165.107038,0.00039574,2]
[323535270,1714075843777,-603.51718625,0.00039615,7]
[323535272,1714075843786,-1493.50659497,0.0004,7]
[323535274,1714075843797,-186.987055,0.00041553,120]
[323535276,1714075843806,-252.49535146,0.00042,4]
[323535278,1714075843815,-157.53850697,0.00043586,3]
[323535280,1714075843826,-500.0,0.0004434,9]
[323535283,1714075843838,-154.8915759,0.0004434,10]
[323535284,1714075843847,-248.01830415,0.00044698,4]
[323535285,1714075843856,-1490.32391025,0.00044698,4]
[323535286,1714075843865,-283.38557575,0.00044698,4]
[323535287,1714075843873,-308.49906714,0.00044698,4]
[323535288,1714075843883,-800.25498688,0.00044698,4]
[323535289,1714075843893,-214.40563802,0.00044698,4]
[323535290,1714075843902,-193.60170872,0.00044698,4]
[323535291,1714075843911,-207.697282,0.00044698,120]
[323535292,1714075843919,-599.94421529,0.00044699,4]
[323535293,1714075843928,-577.5,0.00044699,120]
[323535294,1714075843937,-500.0,0.00044699,120]
[323535295,1714075843945,-500.0,0.00044699,120]
[323535296,1714075843954,-500.0,0.00044699,120]
[323535297,1714075843963,-500.0,0.00044699,120]
[323535298,1714075843972,-500.0,0.00044699,120]
[323535299,1714075843981,-489.46932457,0.00044699,120]
[323535300,1714075843994,-10.53067543,0.00044699,120]
[323535301,1714075844003,-495.20068948,0.00044699,120]
[323535804,1714076340806,300.0,0.00014728,2]
[323535808,1714076390942,280.63378291,0.00014728,2]
[323535809,1714076395279,18059.82932486,0.00014728,2]
[323535811,1714076408910,320.50612231,0.00014728,2]
[323535812,1714076465106,7852.15258868,0.00012,2]
[323535879,1714077032659,-154.87609912,0.00017297,2]
[323535880,1714077032668,-337.16390088,0.00017297,2]
[323535881,1714077032714,-227.4874894,0.00017297,2]
[323535882,1714077032724,-328.38236876,0.00017298,2]
[323535890,1714077038464,-1544.13388645,0.00017297,2]
[323535891,1714077038479,-9136.28796355,0.00017297,2]
[323535892,1714077038490,-1162.32943599,0.00017298,2]
[323535893,1714077038508,-526.48799582,0.00017298,2]
[323535895,1714077038519,-539.99117043,0.00017298,2]
[323535897,1714077038532,-1679.50388406,0.00017299,2]
[323535899,1714077038545,-459.83008477,0.00017299,2]
[323535900,1714077038557,-212.12287173,0.000173,2]
[323535902,1714077038568,-161.51116319,0.000173,2]
[323535903,1714077038581,-1955.3744156,0.00017301,2]
[323535904,1714077038592,-1090.8216692,0.00018295,2]
[323535905,1714077038604,-1312.11264804,0.00018295,2]
[323535906,1714077038616,-2588.41116025,0.00018295,2]
[323535907,1714077038627,-300.0,0.00018295,2]
[323535908,1714077038638,-884.01038673,0.00018296,2]
[323535909,1714077038650,-207.94518351,0.00018296,2]
[323535910,1714077038660,-203.90168919,0.00018296,2]
[323535911,1714077038671,-1467.82101263,0.00018296,2]
[323535912,1714077038685,-304.17293716,0.00018296,2]
[323536115,1714077040611,-308.5768874,0.00017297,2]
[323536137,1714077040811,-117.3231176,0.00018296,2]
[323536398,1714077043482,-187.33972874,0.00017297,2]
[323536400,1714077043491,-204.81767663,0.00018295,2]
[323536402,1714077043501,-57286.68202984,0.00018296,2]
[323536404,1714077043510,-1620.69351377,0.00018297,2]
[323536406,1714077043520,-7868.86713707,0.00018297,2]
[323536408,1714077043529,-283.50200201,0.00018298,2]
[323536410,1714077043538,-623.92968573,0.00018325,2]
[323536413,1714077043547,-623.92968573,0.00018325,2]
[323536416,1714077043556,-276.28097272,0.00018329,2]
[323536418,1714077043565,-197.91829664,0.00018347,2]
[323536420,1714077043575,-241.5530834,0.0002,2]
[323536422,1714077043585,-638.06438949,0.00022,2]
[323536424,1714077043594,-159.09368306,0.00022,2]
[323536426,1714077043604,-713.64240918,0.00023,2]
[323536428,1714077043613,-160.348274,0.00024691,2]
[323536430,1714077043624,-2624.70865838,0.00025974,2]
[323536431,1714077043635,-173.22582113,0.00025981,2]
[323536432,1714077043645,-692.83443417,0.00026,2]
[323536433,1714077043655,-332.46637311,0.00027,20]
[323536434,1714077043665,-692.516097,0.00027397,2]
[323536435,1714077043675,-1000.0,0.00027397,2]
[323536436,1714077043685,-166.666666,0.00027397,2]
[323536437,1714077043696,-169.265626,0.00027397,2]
[323536438,1714077043705,-802.10050588,0.000275,17]
[323536439,1714077043715,-276.28097269,0.00027768,3]
[323536440,1714077043724,-220.80144736,0.00028,2]
[323536441,1714077043734,-166.666666,0.00028038,2]
[323536442,1714077043743,-166.666666,0.00028679,2]
[323536443,1714077043752,-166.666666,0.00029321,2]
[323536444,1714077043761,-166.666666,0.00029962,2]
[323536445,1714077043770,-166.666666,0.0003,2]
[323536446,1714077043779,-870.15716401,0.0003,10]
[323536447,1714077043788,-166.666666,0.00030603,2]
[323536448,1714077043796,-191.46085759,0.00032,4]
[323536449,1714077043806,-692.516097,0.00033165,2]
[323536450,1714077043815,-466.00099692,0.00034,4]
[323536451,1714077043825,-6885.56037624,0.00035,4]
[323536452,1714077043834,-597.58205302,0.00035,2]
[323536453,1714077043843,-3719.15460311,0.00035,4]
[323536454,1714077043853,-154.87609912,0.00035,4]
[323536455,1714077043862,-186.987055,0.00035616,120]
[323536456,1714077043871,-2047.65428365,0.00037,2]
[323536457,1714077043881,-276.28097269,0.00037206,8]
[323536458,1714077043890,-692.516097,0.00038933,2]
[323536459,1714077043899,-1493.50659497,0.0004,7]
[323536461,1714077043908,-1000.0,0.0004,2]
[323536463,1714077043917,-1000.0,0.00041,2]
[323536464,1714077043925,-500.0,0.0004199,2]
[323536466,1714077043935,-3133.64,0.0004199,3]
[323536468,1714077043944,-252.49535146,0.00042,4]
[323536470,1714077043953,-1000.0,0.00042,2]
[323536472,1714077043963,-1000.0,0.00043,2]
[323536474,1714077043972,-157.53850697,0.00043586,3]
[323536476,1714077043982,-288.28872013,0.00043804,4]
[323536478,1714077043991,-1000.0,0.00044,2]
[323536480,1714077044000,-154.87609912,0.0004434,10]
[323536481,1714077044009,-1000.0,0.000445,2]
[323536483,1714077044019,-500.0,0.00044563,9]
[323536485,1714077044028,-153.0,0.00044685,2]
[323536487,1714077044037,-153.0,0.00044685,2]
[323536489,1714077044046,-153.0,0.00044685,2]
[323536491,1714077044055,-680.58511048,0.00044697,4]
[323536493,1714077044064,-2998.6752285,0.00044697,4]
[323536495,1714077044073,-181.36667498,0.00044698,2]
[323536496,1714077044083,-326.24988,0.00044698,4]
[323536498,1714077044092,-521.52942585,0.00044698,4]
[323536500,1714077044101,-154.92367269,0.00044698,4]
[323536501,1714077044110,-157.76351589,0.00044698,4]
[323536502,1714077044119,-193.60170872,0.00044698,4]
[323536504,1714077044128,-500.0,0.00044699,120]
[323536506,1714077044137,-247.5,0.00044699,120]
[323536508,1714077044146,-500.0,0.00044699,120]
[323536510,1714077044155,-500.0,0.00044699,120]
[323536512,1714077044164,-500.0,0.00044699,120]
[323536514,1714077044173,-500.0,0.00044699,120]
[323536515,1714077044182,-500.0,0.00044699,120]
[323536517,1714077044191,-500.0,0.00044699,120]
[323536519,1714077044200,-500.0,0.00044699,120]
[323536521,1714077044209,-500.0,0.00044699,120]
[323536523,1714077044218,-500.0,0.00044699,120]
[323536525,1714077044227,-500.0,0.00044699,120]
[323536527,1714077044236,-500.0,0.00044699,120]
[323536529,1714077044245,-500.0,0.00044699,120]
[323536531,1714077044254,-500.0,0.00044699,120]
[323536533,1714077044263,-500.0,0.00044699,120]
[323536535,1714077044273,-500.0,0.00044699,120]
[323536537,1714077044282,-500.0,0.00044699,120]
[323536539,1714077044291,-500.0,0.00044699,120]
[323536540,1714077044300,-500.0,0.00044699,120]
[323536541,1714077044308,-500.0,0.00044699,120]
[323536542,1714077044317,-500.0,0.00044699,120]
[323536543,1714077044326,-500.0,0.00044699,120]
[323536544,1714077044334,-500.0,0.00044699,120]
[323536545,1714077044343,-500.0,0.00044699,120]
[323536547,1714077044352,-500.0,0.00044699,120]
[323536549,1714077044361,-500.0,0.00044699,120]
[323536550,1714077044371,-500.0,0.00044699,120]
[323536552,1714077044383,-500.0,0.00044699,120]
[323536555,1714077044392,-500.0,0.00044699,120]
[323536557,1714077044401,-500.0,0.00044699,120]
[323536559,1714077044411,-251.60444209,0.00044699,120]
[323536561,1714077044423,-500.0,0.00044699,120]
[323536563,1714077044432,-500.0,0.00044699,120]
[323536565,1714077044442,-500.0,0.00044699,120]
[323536567,1714077044451,-500.0,0.00044699,120]
[323536569,1714077044463,-500.0,0.00044699,120]
[323536571,1714077044472,-400.0,0.00044699,120]
[323536573,1714077044481,-2400.0209126,0.00044699,2]
[323536575,1714077044491,-14352.9056167,0.00044699,120]
[323536577,1714077044500,-238.3287631,0.00044699,2]
[323536579,1714077044510,-1161.25934686,0.00044699,4]
[323536581,1714077044519,-154.8915759,0.00044699,15]
[323536583,1714077044528,-673.55445774,0.00044699,4]
[323536585,1714077044537,-500.0,0.00044699,30]
[323536587,1714077044547,-1077.45,0.00044699,2]
[323536589,1714077044556,-73334.06562207,0.000447,2]
[323536591,1714077044565,-31136.74119928,0.000447,60]
[323537588,1714078238719,-7717.07775507,0.00021867,2]
[323537591,1714078238733,-151.789382,0.00021867,2]
[323537593,1714078238744,-241.5530834,0.00021868,2]
[323537595,1714078238755,-161.51116319,0.00021868,2]
[323537597,1714078238765,-1679.50388406,0.00021868,2]
[323537598,1714078238778,-10680.42185,0.00021869,2]
[323537599,1714078238789,-154.87609912,0.00021869,2]
[323537600,1714078238800,-884.01038673,0.00021869,2]
[323537601,1714078238811,-1090.8216692,0.00021897,2]
[323537602,1714078238823,-172.67560794,0.00021898,2]
[323537603,1714078238834,-333.02577218,0.00021999,2]
[323537604,1714078238846,-358.53837747,0.00021999,2]
[323537605,1714078238857,-159.09368306,0.0002465,2]
[323537606,1714078238868,-638.06438949,0.00024651,2]
[323537607,1714078238879,-713.64240918,0.00024652,2]
[323537608,1714078238890,-623.45889702,0.00024653,2]
[323537609,1714078238901,-500.0,0.00024657,2]
[323537610,1714078238914,-692.83443417,0.00026,2]
[323537611,1714078238925,-332.46637311,0.00027394,20]
[323537612,1714078238936,-330.340027,0.00027397,2]
[323537613,1714078238948,-166.666666,0.00027397,2]
[323537614,1714078238959,-215.408113,0.00027397,2]
[323537615,1714078238970,-802.10050588,0.00027999,17]
[323537616,1714078238980,-220.80144736,0.00028,2]